Cogmind - Beta 15 *** ADVENTURER MODE // 2025.06.16 @ 12:55:36 Player: NED1124 Result: Destroyed by Y-45 Defender with Beam Rifle Performance ------------- Evolutions (1) 500 Regions Visited (2) 400 Robots Destroyed (25) 125 Value Destroyed (779) 779 Prototype IDs (0) 0 Alien Tech Used (0) 0 Bonus (0) 0 TOTAL SCORE: 1804 Bonus ------- None Cogmind --------- Core Integrity 0/400 Matter 258/300 Energy 250/250 System Corruption 0% Temperature Cool (9) Movement Walking (120) Location -9/Materials Parts ------- > --- POWER (1) -------- Ion Engine > --- PROPULSION (3) --- Aluminum Leg Aluminum Leg Aluminum Leg > --- UTILITY (3) ------ Medium Storage Unit Targeting Computer > --- WEAPON (2) ------- Light Assault Rifle > --- INVENTORY (10) --- Light Ion Engine Light Ion Engine Light Nuclear Core Cooling System Target Analyzer Power Shielding Power Shielding Hardened Medium Armor Plating Light Assault Rifle Datajack Peak State ------------ > --- POWER ------------ Ion Engine > --- PROPULSION ------- Aluminum Leg Aluminum Leg Improved Aluminum Leg > --- UTILITY ---------- Medium Storage Unit Visual Processing Unit Power Shielding > --- WEAPON ----------- Beam Rifle Heavy Assault Rifle > --- INVENTORY -------- Light Ion Engine Light Ion Engine Light Ion Engine Power Shielding Power Shielding Assault Rifle Light Assault Rifle Light Assault Rifle Light Assault Rifle Datajack [Rating: 14] Favorites ----------- Power Light Ion Engine Engine Light Ion Engine Propulsion Aluminum Leg Leg Aluminum Leg Utility Medium Storage Unit Storage Medium Storage Unit Processor Targeting Computer Protection Power Shielding Weapon Light Assault Rifle Energy Gun EM Pulse Gun Ballistic Gun Light Assault Rifle Build | -11 -10 -9 ------- Run | Yrd Mat Mat Slots Evolved 2 | . . 2 Power . | . . . Propulsion 1 | . . 1 Utility 1 | . . 1 Weapon . | . . . Parts Attached 30 | 6 3 21 Power 6 | 1 . 5 Engine 6 | 1 . 5 Core . | . . . Reactor . | . . . Propulsion 11 | 2 1 8 Treads . | . . . Leg 11 | 2 1 8 Wheel . | . . . Hover . | . . . Flight . | . . . Utility 7 | 1 2 4 Device . | . . . Storage 2 | 1 1 . Processor 2 | . . 2 Hackware . | . . . Protection 3 | . 1 2 Artifact . | . . . Weapon 6 | 2 . 4 Energy Gun 2 | 1 . 1 Energy Cannon . | . . . Ballistic Gun 4 | 1 . 3 Ballistic Cannon . | . . . Launcher . | . . . Special Weapon . | . . . Impact Weapon . | . . . Slashing Weapon . | . . . Piercing Weapon . | . . . Special Melee Weapon . | . . . Unidentified Prototypes . | . . . Parts Lost 13 | . . 13 Power 3 | . . 3 Propulsion 5 | . . 5 Utility 1 | . . 1 Weapon 4 | . . 4 Highest Loss Streak 8 | . . 8 To Critical Strikes . | . . . Average Backups 7 | 1 7 8 Power 2 | . 2 2 Propulsion . | . . . Utility 2 | . 1 3 Weapon 2 | . 2 1 Tool/Special . | . . . Unused Backups 12 | . . 12 Power 3 | . . 3 Propulsion 1 | . . 1 Utility 6 | . . 6 Weapon 1 | . . 1 Tool/Special 1 | . . 1 Average Slot Usage (%) 93 | . 96 92 Engine 11 | . 14 10 Leg 27 | . 28 26 Storage 11 | . 14 11 Processor 7 | . . 10 Protection 11 | . 11 11 Energy Gun 7 | . 14 4 Ballistic Gun 16 | . 14 17 Peak Build Rating 14 | 6 8 14 Average Rating 9 | 4 7 10 On Entrance 4 | . 6 8 Naked Turns . | . . . Heaviest Build 22 | 12 18 22 Greatest Support 33 | 20 20 33 Greatest Overweight (x) 2 | 2 . 1 Average Overweight (x) . | . . . Largest Inventory Capacity 10 | 8 10 10 Average Capacity 9 | 7 9 10 Most Carried 10 | 2 10 10 Average Carried 7 | 1 7 8 Final Capacity 10 | 8 10 10 Final Carried 10 | 2 10 10 Class Distribution -------------------- 86% | Mutant 13% | Scavenger-Mutant Dominant Class ---------------- Mutant | -10/Materials Mutant | -9/Materials Resources | -11 -10 -9 ----------- Run | Yrd Mat Mat Matter Collected 619 | 202 117 300 Remotely . | . . . Salvage Created 868 | . 158 710 Parts 47 | . 9 38 Haulers Intercepted . | . . . Recyclers Shooed 1 | . . 1 Parts Field Recycled . | . . . Retrieved Matter . | . . . Parts Self-Destructed . | . . . Prevented . | . . . Kills | -11 -10 -9 ------- Run | Yrd Mat Mat Combat Hostiles Destroyed 20 | . 5 15 Guns 20 | . 5 15 Classes Destroyed 7 | . 3 4 Worker 2 | . . 2 Builder 1 | . . 1 Watcher 2 | . 1 1 Swarmer 3 | . 3 . Grunt 13 | . 2 11 Duelist 1 | . . 1 Sentry 3 | . . 3 Best Kill Streak 6 | . 3 6 Combat Bots Only 4 | . 3 4 Max Kills in Single Turn 2 | . 2 2 Gunslinging 1 | . 1 . Exploded . | . . . Melee . | . . . Uniques/NPCs Destroyed . | . . . Combat | -11 -10 -9 -------- Run | Yrd Mat Mat Hostile Shots Fired 264 | . 40 224 Missed 67 | . 15 52 Hits 197 | . 25 172 Melee 8 | . . 8 Projectile 189 | . 25 164 Critical Strikes 2 | . . 2 Damage Taken 2040 | . 237 1803 Core 430 | . 29 401 Absorbed by Shields . | . . . Redirected to Shielding 43 | . 7 36 Ignored by Resistances 618 | . 77 541 Core Remaining (%) 94 | 100 88 . Volleys Fired 93 | . 15 78 Largest 2 | . 2 2 Hottest 79 | . 60 79 Shots Fired 170 | . 30 140 Gun 170 | . 30 140 Cannon . | . . . Launcher . | . . . Special . | . . . Kinetic 124 | . 15 109 Thermal 27 | . . 27 Explosive . | . . . Electromagnetic 19 | . 15 4 Robot Hit Streak 25 | . 6 25 Robot Miss Streak 3 | . 3 3 Penetration Max . | . . . Secondary Targets 4 | . 2 2 Max Gunslinging Chain 1 | . 1 1 Shots Hit Robots 137 | . 21 116 Core Hits 49 | . 9 40 Critical Kills . | . . . Critical Parts Destroyed 1 | . . 1 Critical Strikes 2 | . . 2 Burn 1 | . . 1 Destroy 1 | . . 1 Melee Attacks . | . . . Impact . | . . . Slashing . | . . . Piercing . | . . . Sneak Attacks . | . . . Combat Hostiles . | . . . Follow-up Attacks . | . . . Damage Inflicted 1874 | . 271 1603 Guns 1534 | . 271 1263 Cannons . | . . . Explosions 313 | . . 313 Melee . | . . . Ramming 27 | . . 27 Kinetic 1088 | . 153 935 Thermal 290 | . . 290 Explosive 313 | . . 313 Electromagnetic 156 | . 118 38 Impact . | . . . Slashing . | . . . Piercing . | . . . Highest Corruption . | . . . Average Corruption . | . . . Corruption Purged . | . . . Corruption Blocked . | . . . Overload Shots . | . . . Overflow Damage 19 | . . 19 Projectiles . | . . . Explosions 19 | . . 19 Melee . | . . . Knockbacks 1 | . . 1 Impact 1 | . . 1 Kinetic . | . . . Secondary . | . . . Self-Inflicted Damage . | . . . Shots . | . . . Rammed . | . . . Targets Rammed 7 | . . 7 Kicked 7 | . . 7 Crushed . | . . . Highest Temperature 325 | . 39 325 Average Temperature 64 | . 19 74 Received Heat Transfer 1059 | . 123 936 Effects 2 | . . 2 Interference 2 | . . 2 Siege Activations . | . . . Martial Activations . | . . . Shielding Activations . | . . . Robots Disrupted . | . . . Combat Hostiles . | . . . Robots Corrupted . | . . . Combat Hostiles . | . . . Parts Fried . | . . . Impact Corruptions . | . . . Robots Melted . | . . . Combat Hostiles . | . . . Parts Melted . | . . . Heat Transferred 814 | . . 814 Parts Sabotaged . | . . . Parts Stolen . | . . . Parts Stripped . | . . . Power Chain Reactions . | . . . Alert | -11 -10 -9 ------- Run | Yrd Mat Mat Maximum Alert Level . | . . . Low Security (%) 100 | 100 100 100 Level 1 . | . . . Level 2 . | . . . Level 3 . | . . . Level 4 . | . . . Level 5 . | . . . High Security . | . . . Max Security . | . . . Peak Influence 146 | . 70 146 Initial . | . . . Average 38 | . 17 49 Influence Increases 642 | . 130 512 Destroy 0b10 Robot/C 400 | . 100 300 Destroy 0b10 Robot/NC 25 | . 5 20 Destroy Leader 104 | . 22 82 Successful Hack 9 | . 3 6 Disable Machine 54 | . . 54 Destroy Structure 20 | . . 20 Lose Combat Pursuer 30 | . . 30 Influence Decreases 612 | . 130 482 Time Decay 492 | . 130 362 Lost Part 120 | . . 120 Squads Dispatched 3 | . . 3 Investigation 1 | . . 1 Extermination . | . . . Reinforcement 2 | . . 2 Assault . | . . . Garrison . | . . . Intercept . | . . . Searches Triggered . | . . . Construction Impeded . | . . . Haulers Reinforced . | . . . Active Scanning Responses . | . . . Cargo Convoy Interrupts . | . . . Stealth | -11 -10 -9 --------- Run | Yrd Mat Mat Distress Signals 5 | . 1 4 Communications Jammed . | . . . Distress Signals . | . . . Times Spotted 31 | . 8 23 Peak Tracking Total 6 | . 3 6 Tactical Retreats 1 | . . 1 Traps | -11 -10 -9 ------- Run | Yrd Mat Mat Traps Triggered 2 | . 1 1 Indirectly . | . . . Trap Hack Attempts . | . . . Triggered . | . . . Disarmed . | . . . Reprogrammed . | . . . Reused . | . . . Traps Extracted . | . . . Installed . | . . . Triggered . | . . . Machines | -11 -10 -9 ---------- Run | Yrd Mat Mat Machines Disabled 6 | . . 6 Max in Single Turn 3 | . . 3 Machines Repaired . | . . . Machines Dismantled . | . . . Machines Sabotaged . | . . . Overloaded Fab Kills . | . . . Hacking | -11 -10 -9 --------- Run | Yrd Mat Mat Machines Accessed 4 | . 1 3 Terminals 4 | . 1 3 Fabricators . | . . . Repair Stations . | . . . Recycling Units . | . . . Scanalyzers . | . . . Garrison Access . | . . . Total Hacks 7 | . 2 5 Successful 3 | . 1 2 Failed 4 | . 1 3 Catastrophic 2 | . . 2 Database Lockouts . | . . . Manual . | . . . Terminals 7 | . 2 5 Fabricators . | . . . Repair Stations . | . . . Recycling Units . | . . . Scanalyzers . | . . . Garrison Access . | . . . Terminal Hacks 3 | . 1 2 Emergency Access Points 2 | . 1 1 Surveillance Status 1 | . . 1 Fabricator Hacks . | . . . Repair Station Hacks . | . . . Recycling Unit Hacks . | . . . Scanalyzer . | . . . Garrison Access Hacks . | . . . Unauthorized Hacks . | . . . Terminals . | . . . Fabricators . | . . . Repair Stations . | . . . Recycling Units . | . . . Scanalyzers . | . . . Garrison Access . | . . . Data Cores Recovered . | . . . Used . | . . . Hacking Detections 3 | . 1 2 Full Trace Events 1 | . . 1 Feedback Events . | . . . Feedback Blocked . | . . . Robot Schematics Acquired . | . . . Robots Built . | . . . Authchips . | . . . Time . | . . . Total Robot Build Rating . | . . . Part Schematics Acquired . | . . . Parts Built . | . . . Authchips . | . . . Time . | . . . Total Part Build Rating . | . . . Parts Repaired . | . . . Time . | . . . Parts Recycled . | . . . Recycled Matter . | . . . Retrieved Matter . | . . . Retrieved Components . | . . . Parts Scanalyzed . | . . . Part Schematics Acquired . | . . . Parts Damaged . | . . . Bothacking | -11 -10 -9 ------------ Run | Yrd Mat Mat Used RIF Installer . | . . . Robots Hacked . | . . . Non-combat . | . . . Combat . | . . . Robot Hacks Applied . | . . . Relay Couplers Released . | . . . Fabnet Peak Effective % . | . . . Robots Rewired . | . . . Allies Hacked . | . . . Hacks Repelled . | . . . Allies | -11 -10 -9 -------- Run | Yrd Mat Mat Total Allies . | . . . Largest Group . | . . . Highest-Rated Group . | . . . Highest-Rated Ally . | . . . Total Orders . | . . . Ally Attacks . | . . . Total Damage . | . . . Kills . | . . . Allies Corrupted . | . . . Allies Melted . | . . . Intel | -11 -10 -9 ------- Run | Yrd Mat Mat Active Infowar (turns) 398 | . . 398 Optics 398 | . . 398 Robot Analysis Total . | . . . Derelict Logs Recovered . | . . . Drone Launches . | . . . Drone Recoveries . | . . . Exploration | -11 -10 -9 ------------- Run | Yrd Mat Mat Turns Passed 1552 | 91 425 1036 Spaces Moved 1029 | 75 307 647 Core 20 | 20 . . Treads . | . . . Legs 1009 | 55 307 647 Wheels . | . . . Hover . | . . . Flight . | . . . Fastest Speed 50 | 50 120 120 Average Speed 119 | 108 120 120 Slowest Speed 190 | 150 120 190 Overloaded Moves . | . . . Propulsion Burnouts . | . . . Robots Hopped . | . . . Potential Cave-ins . | . . . Cave-ins Triggered . | . . . Exploration Rate (%) 34 | 4 50 50 Regions Visited 2 Branch Regions . Pre-discovered Areas . | . . . Known Exits Taken . | . . . Unknown Exits Taken 2 | 1 1 . Scrap Searched . | . . . Spaces Dug . | . . . Terrain Destroyed 21 | . . 21 Melee . | . . . Projectile . | . . . AOE 21 | . . 21 Terrain Rammed . | . . . Walls Destroyed . | . . . Machines Disabled . | . . . Actions | -11 -10 -9 --------- Run | Yrd Mat Mat Total 1195 | 82 334 779 Wait . | . . . Move 1027 | 74 306 647 Hop . | . . . Pick Up 21 | 2 8 11 Fast Attach 14 | 6 1 7 Attach 8 | . . 8 Detach 2 | . . 2 Swap 10 | . 2 8 Drop 13 | . 2 11 Fire 93 | . 15 78 Melee . | . . . Ram . | . . . Kick 7 | . . 7 Crush . | . . . Escape Stasis . | . . . Rewire . | . . . Trap . | . . . Miscellaneous . | . . . Route ------- -11/Scrapyard -10/Materials -9/Materials History --------- Turn | Location | Event 12 | -11/Scrapyard | Discovered new exit (range 16) 92 | -11/Scrapyard | Entered Materials 305 | -10/Materials | Build established: Mutant 506 | -10/Materials | Discovered new exit (range 7) 517 | -10/Materials | Entered another Materials area 517 | -9/Materials | Evolved 2 slots: Propulsion x1, Utility x1 917 | -9/Materials | Core integrity fell below 50% 947 | -9/Materials | Core integrity fell below 20% 962 | -9/Materials | Lost 8 parts (2p4n2w) 1553 | -9/Materials | Destroyed by Y-45 Defender with Beam Rifle Last Messages --------------- 01473_ Dropped Ion Engine. 01479_ U-05 Engineer lays Concrete. 01483_ W-16 Scout distress signal alerts nearby ally. 01499_ U-05 Engineer builds a Wall. 01500_ T-07 Excavator is excavating. 01503_ U-05 Engineer builds a Wall. 01503_ U-05 Engineer lays Concrete. 01504_ U-05 Engineer builds a Wall. 01504_ T-07 Excavator is excavating. 01505_ Kicked T-07 Excavator. 01507_ U-05 Engineer lays Concrete. 01507_ Kicked T-07 Excavator out of the way. 01515_ Kicked U-05 Engineer out of the way. 01515_ U-05 Engineer knocked back. 01517_ Kicked U-05 Engineer. 01525_ Lgt. Assault Rifle destroyed. 01531_ Lgt. Armor Plating destroyed. 01539_ U-05 Engineer builds a Door. 01540_ Y-45 Defender destroyed. 01545_ K-01 Serf collects debris. Map ----- +----------------------------------------------------+ | ?# """ #?????????????????????# T """ + T +? | | ?# "T" #?????????????????##### " """ # # | | ?#! ############??????# + """ # # | | ?# + #==!!!!#??????# ### ## ##? | | ?# """ # #== ! #??????# #??? ## #?? | | ?# """ + # #??????# #??? ## #?? | | ?# """ # # #??????# #???########## #?? | | ?# # #???####+############## #?? | | ?#####+#### ##### # # #?? | | ?????# ] +%[ # " + #?? | | ?????#### ##### % # T # #?? | | ????????# """ """ #???#! * + " # #?? | | ????????# """ """ #???#=! ! # # #?? | | ????????# """ """ #???# # """ # #?? | | ????????# #???# # """ # #?? | | ????????# #???# # """ + +?? | | ????????# ##########???# # # #?? | | ????????# #??????????#######+############# #?? | | ????????# ############ ?? | | ????????+ ?? | | ????????# ?? | | ????????# */ """ "" ####+#################? | | ????????# */ """ T" #??? #???????????????? | | ????????# / """ "" ## #???????????????? | | ????????# kY + ??????????????????? | | ????????# !%[ @ ##????????????????????? | | ????????#^^ ######### ######?????????????????????? | | ????????# #??# #?????????????????????????? | | ????????# #??# ##?????????????????????????? | | ????????# #??# #####??????????????????????????? | | ????????# #??####??????????????????????????????? | | ????????# #????????????????????????????????????? | | ????????# #????????????????????????????????????? | | ????????# #????????????????????????????????????? | | ????????# #????????????????????????????????????? | | ????????# #????????????????????????????????????? | | ???????? ????????????????????????????????????? | | ???????? ????????????????????????????????????? | | ???????? T ????????????????????????????????????? | | ???????# ????????????????????????????????????? | | ???????# ?????????????????????????????????????? | | ???????## ? ?????????????????????????????????????? | | ??????????? ?????????????????????????????????????? | | ?????????????????????????????????????????????????? | | ?????????????????????????????????????????????????? | | ?????????????????????????????????????????????????? | | ?????????????????????????????????????????????????? | | ?????????????????????????????????????????????????? | | ?????????????????????????????????????????????????? | | ?????????????????????????????????????????????????? | +----------------------------------------------------+ Best States ------------- Heat Dissipation 28 Energy Generation 10 Energy Capacity 250 Matter Stores 300 Matter Capacity 300 Sight Range 18 Terrain Scan Density 10 Armor Coverage 150 Resistance: KI 20 Resistance: TH 20 Resistance: EX 20 Resistance: EM 20 Resistance: I 20 Resistance: S 20 Resistance: P 20 Power Shielding 33 Evasion (%) 55 Targeting Accuracy 5 Offensive Hacking 10 Item Schematics ----------------- None Robot Schematics ------------------ None Fabricated ------------ Nothing Repaired ---------- Nothing Alien Tech Used ----------------- None Achievements -------------- None Challenges ------------ None Game ------ Seed IonicKineticBlaster Manual? 0 Play Time 00:17:04 Cumulative 40.1 hours Start 2025.06.16 @ 12:41:06 End 2025.06.16 @ 12:55:36 Sessions 1 Manual Loads 0 Difficulty Adventurer Special Mode None Game No. 86 Rogue 0 Adventurer 25 Explorer 61 Win Type - Total 0 Types 0/0/0/0/0/0/0/0/0/0 Lore% 4 Gallery% 23 Achievement% 24 Wizard Run 0 Options --------- Layout 1 ASCII 0 Keyboard 1 Movement Arrows Keybinds 0 Fullscreen 1 Font 16/SmallcapsGlow Map View 55x38 Zoom Use 0% Tactical HUD 1 Map Filters NONE Filters NONE Steam 1 RUN: 7c75d5c0-3c18-46f0-9da1-a26a56b93cc3